fUST/lending_fUST_20241121
["ID","MTS","AMOUNT","RATE_DAILY","PERIOD"]
[342849532,1732180253326,-151.0,0.00024109,7]
[342849533,1732180253336,-2362.94,0.00024109,2]
[342849534,1732180253344,-500.0,0.00024109,2]
[342849535,1732180253354,-151.0,0.00024109,7]
[342849536,1732180253363,-151.0,0.00024109,7]
[342849537,1732180253372,-151.0,0.00024109,7]
[342849538,1732180253381,-286.31579289,0.00024109,2]
[342849539,1732180253390,-151.0,0.00024109,7]
[342849540,1732180253399,-670.84,0.00024109,2]
[342849541,1732180253408,-500.0,0.00024109,2]
[342849542,1732180253418,-584.6,0.00024109,2]
[342849543,1732180253427,-308.73,0.00024109,2]
[342849544,1732180253436,-241.129711,0.00024109,7]
[342849545,1732180253447,-241.129711,0.00024109,7]
[342849546,1732180253456,-500.0,0.00024109,2]
[342849547,1732180253464,-500.0,0.00024109,2]
[342849548,1732180253473,-500.0,0.00024109,2]
[342849549,1732180253482,-500.0,0.00024109,2]
[342849550,1732180253492,-500.0,0.00024109,2]
[342849551,1732180253501,-896.601238,0.00024109,7]
[342849552,1732180253510,-602.7,0.00024109,2]
[342849553,1732180253519,-500.0,0.00024109,2]
[342849554,1732180253529,-896.601238,0.00024109,7]
[342849555,1732180253538,-151.0,0.00024109,7]
[342849556,1732180253548,-2252.3,0.00024109,2]
[342849557,1732180253611,-500.0,0.00024109,2]
[342849558,1732180253621,-500.0,0.00024109,2]
[342849559,1732180253630,-501.23,0.00024109,2]
[342849560,1732180253639,-500.0,0.00024109,2]
[342849561,1732180253648,-151.0,0.00024109,7]
[342849562,1732180253658,-500.0,0.00024109,2]
[342849563,1732180253667,-783.95,0.00024109,2]
[342849564,1732180253676,-151.0,0.00024109,7]
[342849565,1732180253685,-500.0,0.00024109,2]
[342849566,1732180253695,-500.0,0.00024109,2]
[342849567,1732180253704,-3631.76,0.00024109,2]
[342849568,1732180253713,-1124.64,0.00024109,2]
[342849569,1732180253722,-500.0,0.00024109,2]
[342849570,1732180253731,-500.0,0.00024109,2]
[342849571,1732180253740,-500.0,0.00024109,2]
[342849572,1732180253749,-18505.84,0.00024109,2]
[342849573,1732180253758,-500.0,0.00024109,2]
[342849574,1732180253767,-194.424992,0.00024109,7]
[342849575,1732180253776,-797.78,0.00024109,2]
[342849576,1732180253785,-151.0,0.00024109,7]
[342849577,1732180253794,-194.424992,0.00024109,7]
[342849578,1732180253803,-3879.56,0.00024109,2]
[342849579,1732180253812,-1759.52,0.00024109,2]
[342849580,1732180253821,-1080.23,0.00024109,2]
[342849581,1732180253830,-500.0,0.00024109,2]
[342849582,1732180253838,-159.9945099,0.00024109,2]
[342849583,1732180253847,-500.0,0.00024109,2]
[342849584,1732180253856,-500.0,0.00024109,2]
[342849585,1732180253865,-338.6566,0.00024109,7]
[342849586,1732180253874,-4489.93,0.00024109,2]
[342849587,1732180253883,-660.79,0.00024109,2]
[342849588,1732180253893,-500.0,0.00024109,2]
[342849589,1732180253902,-338.6566,0.00024109,7]
[342849590,1732180253911,-500.0,0.00024109,2]
[342849591,1732180253920,-151.0,0.00024109,7]
[342849592,1732180253929,-1779.57,0.00024109,2]
[342849593,1732180253939,-500.0,0.00024109,2]
[342849594,1732180253950,-500.0,0.00024109,2]
[342849595,1732180253959,-2623.17,0.00024109,2]
[342849596,1732180253968,-626.01,0.00024109,2]
[342849597,1732180253977,-500.0,0.00024109,2]
[342849598,1732180253987,-593.45,0.00024109,2]
[342849599,1732180253997,-2887.34,0.00024109,2]
[342849600,1732180254006,-500.0,0.00024109,2]
[342849601,1732180254017,-204.903851,0.00024109,7]
[342849602,1732180254028,-204.903851,0.00024109,7]
[342849603,1732180254038,-500.0,0.00024109,2]
[342849604,1732180254047,-871.48,0.00024109,2]
[342849605,1732180254056,-500.0,0.00024109,2]
[342849606,1732180254066,-875.13,0.00024109,2]
[342849607,1732180254075,-151.0,0.00024109,7]
[342849608,1732180254085,-500.0,0.00024109,2]
[342849609,1732180254094,-652.65,0.00024109,2]
[342849610,1732180254104,-500.0,0.00024109,2]
[342849611,1732180254114,-151.0,0.00024109,7]
[342849612,1732180254123,-191.990356,0.00024109,7]
[342849613,1732180254133,-500.0,0.00024109,2]
[342849614,1732180254142,-191.990356,0.00024109,7]
[342849615,1732180254151,-500.0,0.00024109,2]
[342849616,1732180254161,-500.0,0.00024109,2]
[342849617,1732180254171,-871.714128,0.00024109,7]
[342849618,1732180254180,-500.0,0.00024109,2]
[342849619,1732180254189,-500.0,0.00024109,2]
[342849620,1732180254202,-637.69,0.00024109,2]
[342849621,1732180254211,-564.98,0.00024109,2]
[342849622,1732180254220,-663.01,0.00024109,2]
[342849623,1732180254229,-500.0,0.00024109,2]
[342849624,1732180254239,-871.714128,0.00024109,7]
[342849625,1732180254247,-1294.340839,0.00024109,7]
[342849626,1732180254257,-500.0,0.00024109,2]
[342849627,1732180254265,-500.0,0.00024109,2]
[342849628,1732180254275,-683.23,0.00024109,2]
[342849629,1732180254284,-1294.340839,0.00024109,7]
[342849630,1732180254293,-151.0,0.00024109,7]
[342849631,1732180254302,-500.0,0.00024109,2]
[342849632,1732180254312,-790.39063342,0.0002436,2]
[342849634,1732180578160,35433.55,6e-05,2]
[342849649,1732180855068,-210.238641,0.00013973,2]
[342849736,1732181420265,210.019405,0.00013973,2]
[342849762,1732181434471,-300.0,0.00020115,2]
[342849764,1732181434481,-85.01,0.00020115,2]
[342849777,1732181434596,-214.99,0.00020115,2]
[342849779,1732181434606,-13738.97335872,0.00020116,2]
[342849861,1732181438540,-5986.13325,0.00020116,2]
[342850617,1732181446193,-5174.89339128,0.00020116,2]
[342850619,1732181446203,-355.9063819,0.00020429,2]
[342850621,1732181446212,-210.019405,0.00020447,2]
[342850623,1732181446222,-2000.0,0.00021115,2]
[342850625,1732181446231,-500.0,0.00021116,2]
[342850627,1732181446241,-531.42352177,0.00021116,2]
[342850629,1732181446250,-500.0,0.00021116,2]
[342850631,1732181446260,-223.92372316,0.00021116,2]
[342850633,1732181446270,-500.0,0.00021116,2]
[342850635,1732181446280,-277.4446538,0.00021116,2]
[342850637,1732181446290,-484.20985839,0.00021116,2]
[342850639,1732181446300,-1229.49029542,0.00021117,2]
[342850641,1732181446309,-7480.08876928,0.00021117,2]
[342852072,1732182075367,189.017464,0.00013973,2]
[342852176,1732182638590,-300.0,0.00019033,2]
[342852177,1732182638603,-300.0,0.00019033,2]
[342852178,1732182638616,-3188.0,0.00019033,2]
[342852179,1732182638628,-24900.0,0.00019034,2]
[342852180,1732182638641,-206.553993,0.00019292,2]
[342852181,1732182638653,-10389.96694759,0.00019522,2]
[342852182,1732182638665,-10389.96694759,0.00019832,2]
[342852183,1732182638682,-1130.37853289,0.00019832,2]
[342852184,1732182638695,-10389.96694759,0.00020043,2]
[342852185,1732182638707,-5406.11806629,0.00020192,2]
[342852186,1732182638720,-10389.96694759,0.00020384,2]
[342852187,1732182638732,-229.1857182,0.00020392,2]
[342852188,1732182638747,-189.017464,0.00020447,2]
[342852189,1732182638759,-10389.96694759,0.00020577,2]
[342852190,1732182638771,-420.0,0.00020745,2]
[342852191,1732182638784,-1088.66404214,0.00020852,2]
[342852192,1732182638797,-420.0,0.00020937,2]
[342852194,1732182638809,-160.81,0.00021007,3]
[342852195,1732182638820,-482.43,0.00021007,3]
[342852197,1732182638848,-33629.00744703,0.00021017,2]
[342852201,1732182638872,-4077.13554881,0.00021017,2]
[342852205,1732182638900,-14965.5397,0.00021017,2]
[342852269,1732182640767,-22310.59361274,0.00021017,2]
[342852324,1732182643777,-3613.63584926,0.00021017,2]
[342852325,1732182643789,-3159.31426591,0.00021017,2]
[342852326,1732182643801,-12465.98337868,0.00021017,2]
[342852341,1732182797354,170.115717,0.00013973,2]
[342852342,1732183452302,161.609931,0.00013973,2]
[342852441,1732183832726,-354.0,0.00019231,2]
[342852442,1732183832736,-173.80694737,0.00019231,2]
[342852443,1732183832748,-247.44470563,0.00019231,2]
[342852444,1732183832757,-224.748347,0.00019654,2]
[342852487,1732183838846,-206.553993,0.00019328,2]
[342852488,1732183838856,-1001.585374,0.00019654,2]
[342852489,1732183838865,-300.0,0.00019803,2]
[342852490,1732183838874,-7473.484003,0.00019804,2]
[342852662,1732183840692,-11705.28,0.00019804,2]
[342852664,1732183840703,-5721.235997,0.00019804,2]
[342852666,1732183840713,-16855.27,0.0002,2]
[342852668,1732183840722,-1284.32526705,0.0002,2]
[342852670,1732183840732,-2144.0062534,0.00020104,2]
[342852672,1732183840741,-387.81886981,0.00020339,2]
[342852960,1732183843674,-302.0,0.00020339,2]
[342852963,1732183843686,-536.51485119,0.00020339,2]
[342852964,1732183843695,-161.609931,0.00020447,2]
[342852966,1732183843705,-2742.12479101,0.00020748,2]
[342852969,1732183843716,-5048.19702471,0.00020748,2]
[342852978,1732183843802,-252.25564392,0.00020748,2]
[342852981,1732183843813,-2347.389488,0.00020748,2]
[342852983,1732183843823,-321.62,0.00020907,3]
[342852985,1732183843832,-636.50188339,0.00020916,2]
[342852987,1732183843842,-118.40117433,0.00020916,2]
[342853279,1732183846724,-381.59882567,0.00020916,2]
[342853281,1732183846734,-109.76092652,0.00020916,2]
[342856387,1732184317672,161.609931,0.00013973,2]
[342856388,1732184440776,204.0,0.00026,60]
[342856446,1732184973518,161.609931,0.00013973,2]
[342856469,1732185034097,-382.42001,0.00019366,2]
[342856471,1732185034228,-26.357897,0.00019366,2]
[342856472,1732185034238,-300.0,0.00019765,2]
[342856473,1732185034248,-300.0,0.00019765,2]
[342856474,1732185034258,-12217.08398462,0.00019766,2]
[342856475,1732185034271,-12682.91601538,0.00019766,2]
[342856476,1732185034281,-2288.18462801,0.00019788,4]
[342856477,1732185034290,-6518.92461281,0.0001984,4]
[342856478,1732185034300,-408.777907,0.00020051,2]
[342856479,1732185034310,-1268.59993317,0.00020377,2]
[342856480,1732185034319,-14166.0249667,0.00020717,2]
[342856481,1732185034328,-856.2168447,0.00020717,2]
[342856482,1732185034339,-408.777907,0.00020736,2]
[342856483,1732185034348,-500.0,0.00020816,2]
[342856484,1732185034359,-500.0,0.00020816,2]
[342856485,1732185034368,-500.0,0.00020816,2]
[342856486,1732185034377,-500.0,0.00020816,2]
[342856487,1732185034386,-500.0,0.00020816,2]
[342856488,1732185034396,-500.0,0.00020816,2]
[342856489,1732185034405,-500.0,0.00020816,2]
[342856490,1732185034416,-500.0,0.00020816,2]
[342856491,1732185034426,-500.0,0.00020816,2]
[342856492,1732185034437,-500.0,0.00020816,2]
[342856493,1732185034447,-500.0,0.00020816,2]
[342856494,1732185034456,-476.55233828,0.00020816,2]
[342856495,1732185034465,-552.3518138,0.00020816,2]
[342856496,1732185034477,-541.84560123,0.00020816,2]
[342856497,1732185034487,-419.31825232,0.00020816,2]
[342856498,1732185034497,-500.0,0.00020816,2]
[342856499,1732185034508,-500.0,0.00020816,2]
[342856500,1732185034517,-382.14165063,0.00020816,2]
[342856501,1732185034526,-500.0,0.00020816,2]
[342856502,1732185034536,-500.0,0.00020816,2]
[342856503,1732185034545,-171.38255227,0.00020816,2]
[342856504,1732185034555,-500.0,0.00020816,2]
[342856505,1732185034565,-500.0,0.00020816,2]
[342856506,1732185034575,-500.0,0.00020816,2]
[342856507,1732185034584,-500.0,0.00020816,2]
[342856508,1732185034594,-500.0,0.00020816,2]
[342856509,1732185034605,-358.09458308,0.00020816,2]
[342856510,1732185034614,-500.0,0.00020816,2]
[342856511,1732185034623,-500.0,0.00020816,2]
[342856512,1732185034632,-500.0,0.00020816,2]
[342856513,1732185034642,-500.0,0.00020816,2]
[342856514,1732185034651,-500.0,0.00020816,2]
[342856515,1732185034662,-500.0,0.00020816,2]
[342856516,1732185034671,-500.0,0.00020816,2]
[342856517,1732185034680,-500.0,0.00020816,2]
[342856518,1732185034689,-500.0,0.00020816,2]
[342856519,1732185034782,-500.0,0.00020816,2]
[342856520,1732185034792,-500.0,0.00020816,2]
[342856521,1732185034801,-500.0,0.00020816,2]
[342856522,1732185034810,-500.0,0.00020816,2]
[342856523,1732185034819,-500.0,0.00020816,2]
[342856524,1732185034829,-500.0,0.00020816,2]
[342856525,1732185034838,-500.0,0.00020816,2]
[342856526,1732185034847,-500.0,0.00020816,2]
[342856527,1732185034857,-500.0,0.00020816,2]
[342856528,1732185034866,-500.0,0.00020816,2]
[342856529,1732185034875,-500.0,0.00020816,2]
[342856530,1732185034884,-595.70016949,0.00020816,2]
[342856531,1732185034893,-500.0,0.00020816,2]
[342856532,1732185034902,-500.0,0.00020816,2]
[342856533,1732185034913,-500.0,0.00020816,2]
[342856534,1732185034922,-151.0,0.00020816,2]
[342856535,1732185034931,-658.226375,0.00020816,2]
[342856536,1732185034939,-658.226375,0.00020816,2]
[342856537,1732185034949,-151.0,0.00020816,2]
[342856538,1732185034958,-151.0,0.00020816,2]
[342856539,1732185034968,-704.394325,0.00020816,2]
[342856540,1732185034977,-154.5232,0.00020816,2]
[342856541,1732185034986,-704.394325,0.00020816,2]
[342856542,1732185034996,-154.5232,0.00020816,2]
[342856543,1732185035005,-151.0,0.00020816,2]
[342856544,1732185035014,-45382.69022931,0.00020817,2]
[342856569,1732185037846,-4623.54952179,0.00020817,2]
[342856570,1732185037951,-111155.05923663,0.00020817,2]
[342856728,1732185042774,-360.98,0.00020817,2]
[342856729,1732185042800,-24356.7768,0.00020817,2]
[342856730,1732185042905,-5252.00185862,0.00020817,2]
[342856756,1732185646374,169.287946,0.00013973,2]
[342856767,1732186043164,200000.0,0.00025999,60]
[342856783,1732186138084,800.0,0.00026,60]
[342856793,1732186232125,-1585.9145318,0.00018897,2]
[342856794,1732186232135,-99.7974682,0.00019178,2]
[342856795,1732186232147,-66.6849268,0.00019178,2]
[342856796,1732186232156,-1007.9834614,0.00019297,2]
[342856797,1732186232166,-945.962096,0.0001932,2]
[342856798,1732186232178,-300.0,0.00019405,2]
[342856799,1732186232187,-300.0,0.00019405,2]
[342856800,1732186232196,-14617.4088915,0.00019406,2]
[342856801,1732186232208,-300.0,0.00019406,2]
[342856802,1732186232219,-9982.5911085,0.00019406,2]
[342856803,1732186232228,-342.47787575,0.00019517,5]
[342856804,1732186232237,-166.049292,0.00019518,2]
[342856805,1732186232247,-585.0,0.0002,2]
[342856806,1732186232257,-584.0,0.0002,2]
[342856807,1732186232266,-584.0,0.0002,2]
[342856808,1732186232276,-584.0,0.0002,2]
[342856809,1732186232286,-945.962096,0.00020005,2]
[342856810,1732186232296,-169.287946,0.00020447,2]
[342856811,1732186232306,-10482.17997728,0.00020504,2]
[342856812,1732186232314,-791.26491249,0.00020504,2]
[342856813,1732186232324,-945.962096,0.0002069,2]
[342856814,1732186232333,-164.06137092,0.00020816,2]
[342856815,1732186232343,-500.0,0.00020816,2]
[342856816,1732186232352,-500.0,0.00020816,2]
[342856817,1732186232361,-500.0,0.00020816,2]
[342856818,1732186232371,-500.0,0.00020816,2]
[342856819,1732186232380,-500.0,0.00020816,2]
[342856820,1732186232389,-234.01322545,0.00020816,2]
[342856821,1732186232398,-500.0,0.00020816,2]
[342856822,1732186232407,-384.01645744,0.00020816,2]
[342856823,1732186232417,-500.0,0.00020816,2]
[342856824,1732186232428,-500.0,0.00020816,2]
[342856825,1732186232437,-500.0,0.00020816,2]
[342856826,1732186232446,-500.0,0.00020816,2]
[342856827,1732186232455,-500.0,0.00020816,2]
[342856828,1732186232464,-442.32963019,0.00020816,2]
[342856829,1732186232473,-500.0,0.00020816,2]
[342856830,1732186232483,-423.43018138,0.00020816,2]
[342856831,1732186232493,-500.0,0.00020816,2]
[342856832,1732186232503,-500.0,0.00020816,2]
[342856833,1732186232512,-500.0,0.00020816,2]
[342856834,1732186232521,-205.99508598,0.00020817,2]
[342856835,1732186232531,-108368.18581454,0.00020817,2]
[342856949,1732186238275,-4988.64128001,0.00020817,2]
[342857026,1732186243254,-20473.57291764,0.00020817,2]
[342857047,1732186246056,-6231.99999998,0.00020817,2]
[342857051,1732186387946,204.038998,0.00013973,2]
[342857058,1732187130952,193.837048,0.00013973,2]
[342857143,1732187432184,-159.133825,0.00019521,2]
[342857145,1732187432193,-300.0,0.00019794,2]
[342857147,1732187432203,-300.0,0.00019794,2]
[342857149,1732187432212,-24880.0,0.00019795,2]
[342857151,1732187432222,-21486.74028653,0.0002,2]
[342857152,1732187432232,-193.837048,0.00020447,2]
[342857155,1732187432242,-313.81667426,0.00020748,2]
[342857156,1732187432251,-180.14263797,0.00020775,2]
[342857158,1732187432260,-151.09,0.000208,2]
[342857161,1732187432270,-500.0,0.00020816,2]
[342857162,1732187432279,-500.0,0.00020816,2]
[342857165,1732187432289,-500.0,0.00020816,2]
[342857166,1732187432298,-500.0,0.00020816,2]
[342857169,1732187432308,-500.0,0.00020816,2]
[342857170,1732187432317,-500.0,0.00020816,2]
[342857172,1732187432327,-500.0,0.00020816,2]
[342857175,1732187432338,-500.0,0.00020816,2]
[342857177,1732187432347,-200.0,0.00020816,2]
[342857179,1732187432357,-160.2588478,0.00020816,2]
[342857181,1732187432367,-331.82404491,0.00020816,2]
[342857183,1732187432376,-19.67291456,0.00020816,2]
[342857185,1732187432388,-480.32708544,0.00020816,2]
[342857187,1732187432397,-500.0,0.00020816,2]
[342857189,1732187432407,-500.0,0.00020816,2]
[342857191,1732187432416,-569.47099301,0.00020816,2]
[342857193,1732187432424,-500.0,0.00020816,2]
[342857195,1732187432436,-500.0,0.00020816,2]
[342857197,1732187432447,-178.89029076,0.00020816,2]
[342857199,1732187432456,-285.95055142,0.00020816,2]
[342857201,1732187432466,-500.0,0.00020816,2]
[342857203,1732187432476,-229.94122144,0.00020816,2]
[342857205,1732187432485,-155024.24050422,0.00020817,2]
[342857207,1732187432499,-20221.67821162,0.00020817,2]
[342857381,1732187438467,-4010.4488001,0.00020817,2]
[342857382,1732187438479,-67202.62702869,0.00020817,2]
[342857413,1732187440199,-6304.40454665,0.0002017,2]
[342857414,1732187440209,-6304.40454666,0.00020393,2]
[342857415,1732187440219,-2612.30730061,0.00020817,2]
[342857416,1732187440231,-638.36546201,0.00020817,2]
[342857440,1732187443311,-1000.0,0.000199,2]
[342857442,1732187443322,-1000.0,0.000204,2]
[342857444,1732187443332,-500.0,0.00020816,2]
[342857445,1732187443342,-500.0,0.00020816,2]
[342857447,1732187443352,-500.0,0.00020816,2]
[342857448,1732187443362,-500.0,0.00020816,2]
[342857449,1732187443372,-327.61304401,0.00020816,2]
[342857450,1732187443382,-319.85524203,0.00020816,2]
[342857451,1732187443392,-500.0,0.00020816,2]
[342857452,1732187443402,-527.1679785,0.00020816,2]
[342857453,1732187443423,-290.33269275,0.00020817,2]
[342857454,1732187443433,-1000.0,0.00020817,2]
[342857455,1732187443445,-2789.94205147,0.00020817,2]
[342857456,1732187443456,-700.0,0.00020872,2]
[342857457,1732187443466,-500.0,0.00020873,2]
[342857458,1732187443475,-619.64746274,0.00020873,2]
[342857459,1732187443485,-467.93835078,0.00020873,2]
[342857460,1732187443502,-195.1178665,0.00020873,2]
[342857461,1732187443512,-500.43429681,0.00020873,2]
[342857462,1732187443521,-500.0,0.00020873,2]
[342857463,1732187443531,-500.0,0.00020873,2]
[342857464,1732187443540,-2000.0000009,0.00020873,2]
[342857465,1732187443550,-2000.0,0.0002088,2]
[342857466,1732187443560,-114401.24832017,0.000209,10]
[342857467,1732187443573,-11660.53430198,0.000209,10]
[342857468,1732187443585,-123938.21737785,0.000209,10]
[342857469,1732187443716,-1000.0,0.000209,2]
[342857470,1732187443728,-205.41180573,0.00020915,2]
[342857471,1732187443739,-151.0,0.00020917,2]
[342857472,1732187443749,-151.0,0.00020917,2]
[342857473,1732187443758,-151.0,0.00020917,2]
[342857474,1732187443769,-151.0,0.00020917,2]
[342857475,1732187443779,-151.0,0.00020917,2]
[342857476,1732187443788,-151.0,0.00020917,2]
[342857477,1732187443798,-151.0,0.00020917,2]
[342857478,1732187443808,-151.0,0.00020917,2]
[342857479,1732187443818,-151.0,0.00020917,2]
[342857480,1732187443828,-151.0,0.00020917,2]
[342857481,1732187443837,-151.0,0.00020917,2]
[342857482,1732187443847,-151.0,0.00020917,2]
[342857483,1732187443857,-151.0,0.00020917,2]
[342857484,1732187443867,-151.0,0.00020917,2]
[342857485,1732187443876,-151.0,0.00020917,2]
[342857486,1732187443886,-179.900466,0.00020917,2]
[342857487,1732187443895,-157.438293,0.00020917,2]
[342857488,1732187443905,-157.438293,0.00020917,2]
[342857489,1732187443913,-157.438293,0.00020917,2]
[342857490,1732187443923,-157.438293,0.00020917,2]
[342857491,1732187443931,-157.438293,0.00020917,2]
[342857492,1732187443941,-157.438293,0.00020917,2]
[342857493,1732187443960,-157.438293,0.00020917,2]
[342857494,1732187443969,-157.438293,0.00020917,2]
[342857495,1732187443978,-157.438293,0.00020917,2]
[342857496,1732187443987,-157.438293,0.00020917,2]
[342857497,1732187443997,-157.438293,0.00020917,2]
[342857498,1732187444006,-157.438293,0.00020917,2]
[342857499,1732187444015,-157.438293,0.00020917,2]
[342857500,1732187444024,-157.438293,0.00020917,2]
[342857501,1732187444033,-157.438293,0.00020917,2]
[342857502,1732187444042,-157.438293,0.00020917,2]
[342857503,1732187444051,-157.438293,0.00020917,2]
[342857504,1732187444060,-157.438293,0.00020917,2]
[342857505,1732187444069,-157.438293,0.00020917,2]
[342857506,1732187444078,-157.438286,0.00020917,2]
[342857507,1732187444088,-151.0,0.00020917,2]
[342857508,1732187444097,-151.0,0.00020917,2]
[342857509,1732187444106,-151.0,0.00020917,2]
[342857510,1732187444115,-151.0,0.00020917,2]
[342857511,1732187444125,-250.049892,0.00020917,2]
[342857512,1732187444134,-151.0,0.00020917,2]
[342857513,1732187444143,-151.0,0.00020917,2]
[342857514,1732187444152,-151.0,0.00020917,2]
[342857515,1732187444166,-151.0,0.00020917,2]
[342857516,1732187444175,-151.0,0.00020917,2]
[342857517,1732187444184,-151.0,0.00020917,2]
[342857518,1732187444199,-151.0,0.00020917,2]
[342857519,1732187444209,-151.0,0.00020917,2]
[342857520,1732187444218,-151.0,0.00020917,2]
[342857521,1732187444228,-151.0,0.00020917,2]
[342857522,1732187444238,-151.0,0.00020917,2]
[342857523,1732187444251,-151.0,0.00020917,2]
[342857524,1732187444260,-151.0,0.00020917,2]
[342857525,1732187444270,-151.0,0.00020917,2]
[342857526,1732187444279,-151.0,0.00020917,2]
[342857527,1732187444289,-151.0,0.00020917,2]
[342857528,1732187444298,-289.01761,0.00020917,2]
[342857529,1732187444308,-173.868499,0.00020917,2]
[342857530,1732187444317,-173.868499,0.00020917,2]
[342857531,1732187444327,-173.868499,0.00020917,2]
[342857532,1732187444338,-173.868499,0.00020917,2]
[342857533,1732187444347,-173.868499,0.00020917,2]
[342857534,1732187444356,-173.868499,0.00020917,2]
[342857535,1732187444366,-173.868499,0.00020917,2]
[342857536,1732187444376,-173.868499,0.00020917,2]
[342857537,1732187444386,-173.868499,0.00020917,2]
[342857538,1732187444395,-173.868499,0.00020917,2]
[342857539,1732187444405,-173.868499,0.00020917,2]
[342857540,1732187444415,-173.868499,0.00020917,2]
[342857541,1732187444424,-173.868499,0.00020917,2]
[342857542,1732187444434,-173.868499,0.00020917,2]
[342857543,1732187444446,-173.868499,0.00020917,2]
[342857544,1732187444456,-173.868499,0.00020917,2]
[342857545,1732187444466,-173.868499,0.00020917,2]
[342857546,1732187444476,-173.868499,0.00020917,2]
[342857547,1732187444486,-173.868499,0.00020917,2]
[342857548,1732187444496,-173.868508,0.00020917,2]
[342857549,1732187444506,-294.029405,0.00020917,2]
[342857550,1732187444515,-151.0,0.00020917,2]
[342857551,1732187444524,-151.0,0.00020917,2]
[342857552,1732187444534,-151.0,0.00020917,2]
[342857553,1732187444544,-151.0,0.00020917,2]
[342857554,1732187444553,-151.0,0.00020917,2]
[342857555,1732187444563,-151.86082,0.00020917,2]
[342857556,1732187444572,-151.0,0.00020917,2]
[342857557,1732187444582,-151.0,0.00020917,2]
[342857558,1732187444592,-151.0,0.00020917,2]
[342857559,1732187444602,-151.0,0.00020917,2]
[342857560,1732187444611,-151.0,0.00020917,2]
[342857561,1732187444621,-178.751364,0.00020917,2]
[342857562,1732187444631,-151.0,0.00020917,2]
[342857563,1732187444640,-151.0,0.00020917,2]
[342857564,1732187444651,-151.0,0.00020917,2]
[342857565,1732187444661,-151.0,0.00020917,2]
[342857566,1732187444670,-151.0,0.00020917,2]
[342857567,1732187444680,-151.0,0.00020917,2]
[342857568,1732187444689,-151.0,0.00020917,2]
[342857569,1732187444702,-151.0,0.00020917,2]
[342857570,1732187444711,-151.0,0.00020917,2]
[342857571,1732187444721,-151.0,0.00020917,2]
[342857572,1732187444730,-154.66286,0.00020917,2]
[342857573,1732187444740,-151.0,0.00020917,2]
[342857574,1732187444749,-151.0,0.00020917,2]
[342857575,1732187444759,-151.0,0.00020917,2]
[342857576,1732187444768,-151.0,0.00020917,2]
[342857577,1732187444777,-151.0,0.00020917,2]
[342857578,1732187444787,-151.0,0.00020917,2]
[342857579,1732187444796,-151.0,0.00020917,2]
[342857580,1732187444806,-151.0,0.00020917,2]
[342857581,1732187444816,-198.729944,0.00020917,2]
[342857582,1732187444826,-151.0,0.00020917,2]
[342857583,1732187444836,-151.0,0.00020917,2]
[342857584,1732187444846,-283.41561,0.00020917,2]
[342857585,1732187444855,-151.0,0.00020917,2]
[342857586,1732187444864,-151.0,0.00020917,2]
[342857587,1732187444874,-151.0,0.00020917,2]
[342857588,1732187444883,-151.0,0.00020917,2]
[342857589,1732187444958,-151.0,0.00020917,2]
[342857590,1732187444968,-151.0,0.00020917,2]
[342857591,1732187444977,-151.0,0.00020917,2]
[342857592,1732187444987,-151.0,0.00020917,2]